bitfinex-derivatives/quotes_BTCF0:USTF0_20241022
["timestamp","ask_amount","ask_price","bid_price","bid_amount"]
[1729586665424,0.074457,67190.0,67189.0,0.074457]
[1729586665727,0.074457,67190.0,67189.0,0.18200958]
[1729586666933,0.086457,67190.0,67189.0,0.18300958]
[1729586667523,0.098457,67190.0,67189.0,0.18400958]
[1729586669732,0.098457,67190.0,67189.0,0.10955258]
[1729586669929,0.098457,67190.0,67189.0,0.002]
[1729586671131,0.18064242,67190.0,67189.0,0.00135058]
[1729586672435,0.18064242,67190.0,67189.0,0.0009156]
[1729586675030,0.18064242,67190.0,67189.0,0.1409156]
[1729586675236,0.18064242,67190.0,67189.0,0.0009156]
[1729586677544,0.098457,67190.0,67189.0,0.10801289]
[1729586680140,0.098457,67190.0,67189.0,0.18233702]
[1729586680332,0.098457,67190.0,67189.0,0.0009156]
[1729586683639,0.098457,67190.0,67189.0,0.10829346]
[1729586684440,0.238457,67190.0,67189.0,0.0009156]
[1729586684642,0.599257,67190.0,67189.0,0.0009156]
[1729586684948,0.074462,67185.0,67184.0,0.07434154]
[1729586685135,0.074463,67184.0,67183.0,0.07434154]
[1729586685340,0.435263,67184.0,67183.0,0.18199395]
[1729586685546,0.074472,67176.0,67173.0,0.074475]
[1729586686143,0.11094663,67176.0,67173.0,0.074475]
[1729586686449,0.15666511,67176.0,67173.0,0.074475]
[1729586686841,0.08219311,67176.0,67171.0,0.32098952]
[1729586687045,0.05342211,67183.0,67175.0,0.003]
[1729586687244,0.14,67181.0,67175.0,0.003]
[1729586687444,0.08219364,67180.0,67175.0,0.003]
[1729586687651,0.08219364,67179.0,67175.0,0.003]
[1729586687847,0.08219364,67178.0,67175.0,0.003]
[1729586688044,0.074472,67176.0,67175.0,0.003]
[1729586688244,0.074472,67176.0,67175.0,0.004]
[1729586688245,0.15666564,67176.0,67175.0,0.004]
[1729586689247,0.15666564,67176.0,67175.0,0.003]
[1729586689439,0.15666846,67176.0,67175.0,0.14]
[1729586689838,0.15666846,67176.0,67175.0,0.141]
[1729586690149,0.15666846,67176.0,67175.0,0.144]
[1729586692147,0.18376568,67176.0,67175.0,0.144]
[1729586692451,0.10156922,67176.0,67175.0,0.38444975]
[1729586692644,0.29712724,67182.0,67175.0,0.38444975]
[1729586692845,0.074466,67181.0,67180.0,0.08922041]
[1729586693149,0.074466,67181.0,67180.0,0.19900821]
[1729586693849,0.074466,67181.0,67180.0,0.1097878]
[1729586694147,0.074466,67181.0,67175.0,0.141]
[1729586694148,0.074468,67179.0,67175.0,0.07535983]
[1729586694347,0.14,67176.0,67174.0,0.07435983]
[1729586694652,0.074475,67173.0,67172.0,0.07435983]
[1729586695251,0.074476,67172.0,67171.0,0.07435983]
[1729586695440,0.074476,67172.0,67171.0,0.18405072]
[1729586695640,0.074476,67172.0,67171.0,0.07435983]
[1729586696552,0.074476,67172.0,67171.0,0.001]
[1729586697752,0.075476,67172.0,67171.0,0.001]
[1729586700053,0.10213826,67172.0,67171.0,0.001]
[1729586700959,0.10213826,67172.0,67171.0,0.06044691]
[1729586701263,0.10213826,67172.0,67171.0,0.001]
[1729586701753,0.10213826,67172.0,67171.0,0.06044691]
[1729586702454,0.10213826,67172.0,67171.0,0.001]
[1729586702646,0.10213826,67172.0,67171.0,0.06044691]
[1729586702847,0.10213826,67172.0,67171.0,0.001]
[1729586703547,0.075476,67172.0,67171.0,0.001]
[1729586703859,0.074473,67176.0,67171.0,1.2065334]
[1729586704049,0.3608,67177.0,67176.0,0.074472]
[1729586704249,0.074469,67179.0,67178.0,0.07447]
[1729586705357,0.214469,67179.0,67178.0,0.10891396]
[1729586705552,0.214469,67179.0,67171.0,0.5018]
[1729586705553,0.14,67179.0,67177.0,0.0742776]
[1729586705755,0.074472,67176.0,67174.0,0.0742776]
[1729586705950,0.074473,67175.0,67174.0,0.0742776]
[1729586706156,0.074473,67175.0,67174.0,0.10911107]
[1729586706456,0.074473,67175.0,67174.0,0.18340625]
[1729586707158,0.074473,67175.0,67174.0,0.10911107]
[1729586707457,0.002,67179.0,67174.0,0.25311107]
[1729586707649,0.03647428,67178.0,67177.0,0.214471]
[1729586708049,0.03647428,67178.0,67177.0,0.661031]
[1729586708449,0.074466,67181.0,67177.0,0.661031]
[1729586708662,0.03647197,67180.0,67179.0,0.074468]
[1729586709857,0.11093897,67180.0,67179.0,0.074468]
[1729586710562,0.11293897,67180.0,67179.0,0.074468]
[1729586710854,0.11293897,67180.0,67173.0,0.02624116]
[1729586710855,0.074473,67176.0,67175.0,0.074473]
[1729586711056,0.074475,67173.0,67172.0,0.3608]
[1729586711245,0.074475,67173.0,67171.0,0.074476]
[1729586711246,0.074476,67172.0,67171.0,0.074476]
[1729586711450,0.074474,67175.0,67173.0,0.074475]
[1729586711660,0.08219317,67174.0,67173.0,0.074475]
[1729586711856,0.08219232,67174.0,67173.0,0.214475]
[1729586713056,0.15666632,67174.0,67173.0,0.214475]
[1729586713952,0.15666632,67174.0,67173.0,0.216475]
[1729586715063,0.15666632,67174.0,67173.0,0.142]
[1729586715359,0.29666772,67174.0,67173.0,0.002]
[1729586715549,0.074474,67174.0,67173.0,0.11125888]
[1729586716559,0.074474,67174.0,67173.0,0.18572923]
[1729586716857,0.074474,67174.0,67173.0,0.002]
[1729586717053,0.214474,67174.0,67173.0,0.002]
[1729586717761,0.24071418,67174.0,67173.0,0.002]
[1729586719457,0.16226035,67175.0,67174.0,0.074474]
[1729586719660,0.074471,67178.0,67175.0,0.074473]
[1729586720367,0.074471,67178.0,67173.0,0.21634404]
[1729586720368,0.074469,67179.0,67177.0,0.07447]
[1729586720663,0.14,67184.0,67177.0,0.07447]
[1729586720664,0.07447,67178.0,67177.0,0.07447]
[1729586721051,0.074472,67176.0,67175.0,0.07434404]
[1729586721254,0.074473,67175.0,67174.0,0.002]
[1729586721451,0.074473,67175.0,67174.0,0.11121466]
[1729586721655,0.074473,67175.0,67174.0,0.18554932]
[1729586722362,0.074473,67175.0,67174.0,0.002]
[1729586722558,0.5016,67176.0,67174.0,0.23961491]
[1729586722757,0.5008,67176.0,67175.0,0.10931528]
[1729586722964,0.575272,67176.0,67175.0,0.10931528]
[1729586723155,0.575272,67176.0,67175.0,0.23957281]
[1729586723464,0.575272,67176.0,67175.0,0.10931528]
[1729586724365,0.575272,67176.0,67175.0,0.11231528]
[1729586724561,0.575272,67176.0,67175.0,0.11331528]
[1729586724963,0.575272,67176.0,67175.0,0.24357377]
[1729586725160,0.60267833,67176.0,67175.0,0.20252674]
[1729586725962,0.60267833,67176.0,67175.0,0.20262135]
[1729586726352,0.60267833,67176.0,67175.0,0.20263333]
[1729586726560,1.15691833,67176.0,67175.0,0.11340989]
[1729586726762,1.15691833,67176.0,67159.0,0.11902498]
[1729586726763,0.4466,67175.0,67143.0,0.3608]
[1729586726966,0.575297,67153.0,67148.0,0.074502]
[1729586727962,0.0745,67151.0,67149.0,0.14]
[1729586728157,0.3608,67153.0,67149.0,0.14]
[1729586728357,0.0745,67151.0,67149.0,0.14]
[1729586729260,0.3608,67153.0,67152.0,0.074498]
[1729586729464,0.00223382,67165.0,67152.0,0.14]
[1729586729465,0.3608,67159.0,67152.0,0.14]
[1729586729658,0.074493,67157.0,67156.0,0.14]
[1729586730755,0.074493,67157.0,67156.0,0.141]
[1729586731364,0.074493,67157.0,67156.0,0.146]
[1729586731365,0.075493,67157.0,67156.0,0.146]
[1729586731867,0.075493,67157.0,67156.0,0.220494]
[1729586731868,0.001,67157.0,67156.0,0.220494]
[1729586732563,0.001,67157.0,67156.0,0.225494]
[1729586732765,0.001,67157.0,67156.0,0.586294]
[1729586732966,0.3608,67166.0,67156.0,0.586294]
[1729586732967,0.074484,67165.0,67156.0,0.95252]
[1729586733166,0.074484,67165.0,67163.0,0.074485]
[1729586733360,0.074484,67165.0,67156.0,0.3668]
[1729586733571,0.074484,67165.0,67164.0,0.14]
[1729586734769,0.074484,67165.0,67164.0,0.214485]
[1729586734971,0.3608,67166.0,67164.0,0.214485]
[1729586734972,0.3608,67166.0,67165.0,0.074484]
[1729586735161,0.074488,67162.0,67161.0,0.14]
[1729586735859,0.074488,67162.0,67161.0,0.214488]
[1729586736560,0.074488,67162.0,67161.0,0.217488]
[1729586737275,0.076488,67162.0,67161.0,0.226488]
[1729586737774,0.001,67162.0,67161.0,0.221488]
[1729586737975,0.001,67162.0,67161.0,0.225488]
[1729586738180,0.215488,67162.0,67161.0,0.011]
[1729586738869,0.075488,67162.0,67161.0,0.011]
[1729586739270,0.075488,67162.0,67161.0,0.007]
[1729586739271,0.074488,67162.0,67161.0,0.007]
[1729586740274,0.074488,67162.0,67161.0,0.005]
[1729586740772,0.074488,67162.0,67161.0,0.003]
[1729586741672,0.074488,67162.0,67161.0,0.10912602]
[1729586744875,0.074488,67162.0,67161.0,0.10919949]
[1729586745681,0.3608,67169.0,67161.0,0.003]
[1729586745980,0.3616,67176.0,67168.0,0.14]
[1729586746277,0.435272,67176.0,67171.0,0.074477]
[1729586746471,0.436152,67176.0,67171.0,0.074477]
[1729586746672,0.36168,67176.0,67171.0,0.074477]
[1729586746882,0.07670988,67172.0,67171.0,0.074477]
[1729586747069,0.11318881,67172.0,67171.0,0.074477]
[1729586747270,0.11318875,67172.0,67171.0,0.074477]
[1729586747474,0.07670988,67172.0,67171.0,0.074477]
[1729586748075,0.07970988,67172.0,67171.0,0.074477]
[1729586748597,0.00523388,67172.0,67158.0,0.14]
[1729586748882,0.074488,67162.0,67161.0,0.074488]
[1729586749592,0.074488,67162.0,67161.0,0.214488]
[1729586749987,0.074488,67162.0,67161.0,0.14]
[1729586750183,0.3608,67169.0,67157.0,0.074493]
[1729586750184,0.074492,67158.0,67157.0,0.074493]
[1729586750389,0.074491,67159.0,67157.0,0.214493]
[1729586750681,0.3608,67163.0,67160.0,0.074489]
[1729586750889,0.3608,67163.0,67162.0,0.14]
[1729586751186,0.43528,67169.0,67162.0,0.14]
[1729586751375,0.43528,67169.0,67168.0,0.214481]
[1729586751686,0.39728134,67169.0,67168.0,0.214481]
[1729586751882,0.00223388,67172.0,67168.0,0.214481]
[1729586752085,0.00223388,67172.0,67171.0,0.074477]
[1729586752684,0.074473,67175.0,67172.0,0.074476]
[1729586752986,0.074473,67175.0,67168.0,0.14]
[1729586752987,0.3608,67176.0,67175.0,0.074473]
[1729586753180,0.3608,67176.0,67175.0,0.18012766]
[1729586753586,0.3608,67176.0,67175.0,0.26928204]
[1729586753989,0.436066,67182.0,67175.0,1.12752766]
[1729586753990,0.0008,67182.0,67175.0,1.12752766]
[1729586754190,0.3608,67198.0,67181.0,0.6408]
[1729586754191,0.074451,67195.0,67181.0,0.6408]
[1729586754383,0.074451,67195.0,67194.0,0.14]
[1729586755980,0.087451,67195.0,67194.0,0.141]
[1729586756184,0.087451,67195.0,67194.0,0.001]
[1729586757688,0.101451,67195.0,67194.0,0.04648294]
[1729586758086,0.101451,67195.0,67194.0,0.002]
[1729586760287,0.101451,67195.0,67194.0,0.04648294]
[1729586760596,0.101451,67195.0,67194.0,0.002]
[1729586760796,0.074456,67191.0,67188.0,0.214458]
[1729586761088,0.14,67189.0,67184.0,0.074463]
[1729586761292,0.14,67189.0,67181.0,0.71224924]
[1729586761293,0.074465,67182.0,67181.0,0.71224924]
[1729586761492,0.15664648,67182.0,67181.0,0.71132924]
[1729586762089,0.15664902,67182.0,67181.0,0.71132924]
[1729586762984,0.16164902,67182.0,67181.0,0.71132924]
[1729586763893,0.16564902,67182.0,67181.0,0.71132924]
[1729586766094,0.16564902,67182.0,67181.0,0.374466]
[1729586766890,0.09118391,67182.0,67181.0,0.374466]
[1729586767113,0.09118391,67182.0,67181.0,0.961026]
[1729586767691,0.009,67182.0,67181.0,0.86550894]
[1729586768092,0.009,67182.0,67181.0,0.821026]
[1729586768291,0.074451,67195.0,67194.0,0.074452]
[1729586768690,0.074451,67195.0,67194.0,0.214452]
[1729586769588,0.074451,67195.0,67190.0,0.14]
[1729586769790,0.074455,67191.0,67190.0,0.214456]
[1729586770188,0.074455,67191.0,67190.0,0.074456]
[1729586770594,0.07446,67187.0,67185.0,0.074462]
[1729586770797,0.07446,67187.0,67186.0,0.074461]
[1729586771698,0.001,67191.0,67186.0,0.44652]
[1729586771901,0.001,67191.0,67190.0,0.214456]
[1729586772399,0.001,67191.0,67190.0,0.221456]
[1729586773088,0.3608,67192.0,67190.0,0.147]
[1729586773295,0.3608,67192.0,67191.0,0.074455]
[1729586774509,0.3618,67192.0,67191.0,0.082455]
[1729586775186,0.001,67192.0,67191.0,0.082455]
[1729586775388,0.07445,67196.0,67191.0,0.008]
[1729586775596,0.07445,67196.0,67195.0,0.214451]
[1729586776594,0.15661926,67196.0,67195.0,0.214451]
[1729586776795,0.08316926,67196.0,67195.0,0.214451]
[1729586777400,0.08316926,67196.0,67195.0,0.218451]
[1729586777401,0.08216926,67196.0,67195.0,0.218451]
[1729586778696,0.08216926,67196.0,67195.0,0.24526188]
[1729586780588,0.15661926,67196.0,67195.0,0.004]
[1729586780792,0.074455,67191.0,67190.0,0.007]
[1729586781005,0.435255,67191.0,67190.0,0.007]
[1729586781901,0.49638155,67191.0,67187.0,0.02710535]
[1729586782097,0.13558155,67190.0,67187.0,0.02710535]
[1729586782307,0.13558155,67190.0,67189.0,0.074457]
[1729586782308,0.12787029,67190.0,67189.0,0.074457]
[1729586782491,0.21004929,67190.0,67189.0,0.074457]
[1729586782696,0.074458,67190.0,67189.0,0.074457]
[1729586783097,0.001,67191.0,67190.0,0.009]
[1729586783299,0.001,67191.0,67190.0,0.1427779]
[1729586783507,0.001,67191.0,67190.0,0.083456]
[1729586783803,0.001,67190.0,67189.0,0.01]
[1729586784206,0.075456,67190.0,67189.0,0.084457]
[1729586784791,0.074456,67190.0,67189.0,0.074457]
[1729586785300,0.001,67191.0,67190.0,0.074456]
[1729586786298,0.074454,67192.0,67191.0,0.074455]
[1729586786504,0.074454,67192.0,67191.0,0.214455]
[1729586786797,0.3608,67193.0,67191.0,0.14]
[1729586786999,0.3608,67193.0,67192.0,0.074454]
[1729586788695,0.074453,67193.0,67192.0,0.13391755]
[1729586788900,0.074453,67193.0,67192.0,0.074454]
[1729586790994,0.3608,67198.0,67191.0,0.148]
[1729586791196,0.3608,67198.0,67195.0,0.14]
[1729586791800,0.3608,67198.0,67197.0,0.04460011]
[1729586792005,0.3608,67198.0,67197.0,0.074449]
[1729586793502,0.3608,67198.0,67197.0,0.075449]
[1729586794802,0.3608,67198.0,67197.0,0.13491352]
[1729586795606,0.0022325,67203.0,67202.0,0.074443]
[1729586795810,0.0022325,67203.0,67202.0,0.27392978]
[1729586795998,0.0022325,67203.0,67201.0,0.05948602]
[1729586796196,0.0022325,67203.0,67199.0,0.13393202]
[1729586796402,0.074445,67200.0,67199.0,0.074446]
[1729586797603,0.076445,67200.0,67199.0,0.074446]
[1729586797804,0.1129071,67200.0,67199.0,0.074446]
[1729586798102,0.0384621,67200.0,67199.0,0.074446]
[1729586798304,0.002,67200.0,67199.0,0.074446]
[1729586798606,0.03846174,67200.0,67199.0,0.074446]
[1729586798805,0.03946174,67200.0,67199.0,0.074446]
[1729586799111,0.04569886,67202.0,67199.0,0.214446]
[1729586799299,0.16233916,67210.0,67205.0,0.07444]
[1729586799504,0.3608,67219.0,67205.0,0.21444]
[1729586800107,0.0270652,67215.0,67205.0,0.21444]
[1729586800316,0.3628,67206.0,67205.0,0.21444]
[1729586802014,0.003,67206.0,67205.0,0.21444]
[1729586802510,0.003,67206.0,67205.0,0.57420861]
[1729586802717,0.05339627,67218.0,67217.0,0.074426]
[1729586802921,0.52313916,67219.0,67218.0,0.074425]
[1729586803109,0.4141951,67219.0,67218.0,0.074425]
[1729586803613,0.3608,67219.0,67218.0,0.074425]
[1729586804314,0.40649067,67219.0,67218.0,0.074425]
[1729586805309,0.3608,67219.0,67217.0,0.141]
[1729586805514,0.074425,67218.0,67217.0,0.141]
[1729586805918,0.074425,67218.0,67212.0,0.435232]
[1729586805919,0.14,67218.0,67212.0,0.36172]
[1729586806108,0.07443,67214.0,67212.0,0.3608]
[1729586807011,0.07443,67214.0,67212.0,0.3618]
[1729586807412,0.3608,67213.0,67212.0,0.075431]
[1729586807715,0.006,67214.0,67213.0,0.07443]
[1729586807907,0.006,67214.0,67213.0,0.21443]
[1729586808107,0.3608,67247.0,67214.0,0.44632]
[1729586808315,0.02869061,67233.0,67232.0,0.21441]
[1729586808505,0.00223157,67233.0,67232.0,0.21441]
[1729586809111,0.07664057,67233.0,67232.0,0.21441]
[1729586809604,0.08664057,67233.0,67232.0,0.21541]
[1729586809809,0.02523157,67233.0,67232.0,0.142]
[1729586810511,0.02523157,67233.0,67232.0,0.002]
[1729586810512,0.46044057,67233.0,67232.0,0.002]
[1729586812714,0.60816746,67233.0,67222.0,0.13294462]
[1729586812918,0.435218,67225.0,67222.0,0.20736562]
[1729586813215,0.08213589,67224.0,67222.0,0.20736562]
[1729586813417,0.08213589,67223.0,67222.0,0.20736562]
[1729586813716,0.08213589,67223.0,67222.0,0.13294462]
[1729586813908,0.074424,67219.0,67214.0,0.074429]
[1729586814110,0.08213589,67218.0,67217.0,0.14]
[1729586814615,0.03644924,67218.0,67217.0,0.14]
[1729586814816,0.3608,67218.0,67217.0,0.14]
[1729586815026,0.39724924,67218.0,67217.0,0.214426]
[1729586815719,0.47167424,67218.0,67217.0,0.142]
[1729586816818,0.71075562,67218.0,67217.0,0.002]
[1729586817012,0.57075562,67218.0,67217.0,0.002]
[1729586817207,0.57075562,67218.0,67217.0,0.005]
[1729586817513,0.57075562,67218.0,67217.0,0.00372997]
[1729586817914,0.57075562,67218.0,67217.0,0.14372997]
[1729586819214,0.49633062,67218.0,67217.0,0.14372997]
[1729586819422,0.49633062,67218.0,67217.0,0.21815597]
[1729586820209,0.63633062,67218.0,67217.0,0.00372997]
[1729586820519,0.71075562,67218.0,67217.0,0.00372997]
[1729586820729,0.575225,67218.0,67217.0,0.00372997]
[1729586820918,0.0268243,67226.0,67217.0,0.00372997]
[1729586821219,0.435218,67225.0,67221.0,0.18446053]
[1729586821415,0.796018,67225.0,67222.0,0.04446053]
[1729586822025,0.7216,67225.0,67222.0,0.04446053]
[1729586822219,0.7216,67225.0,67224.0,0.074419]
[1729586822834,0.7256,67225.0,67224.0,0.074419]
[1729586823028,0.7306,67225.0,67224.0,0.074419]
[1729586824030,0.7306,67225.0,67217.0,0.07415375]
[1729586824031,0.074421,67222.0,67218.0,0.074424]
[1729586824221,0.3608,67219.0,67218.0,0.074424]
[1729586825529,0.3608,67219.0,67218.0,0.26166212]
[1729586826334,0.3608,67219.0,67218.0,0.15161242]
[1729586826528,0.435224,67219.0,67218.0,0.003]
[1729586826831,0.435224,67219.0,67218.0,0.077425]
[1729586827034,0.435224,67219.0,67218.0,0.217425]
[1729586827535,0.3608,67219.0,67218.0,0.402717]
[1729586827735,0.3608,67219.0,67218.0,0.40276887]
[1729586827930,0.39725143,67219.0,67218.0,0.217425]
[1729586829338,0.39725143,67219.0,67218.0,0.24385357]
[1729586830133,0.39725143,67219.0,67218.0,0.217425]
[1729586830435,0.44293959,67219.0,67218.0,0.217425]
[1729586830635,0.39725143,67219.0,67218.0,0.217425]
[1729586831133,0.39725044,67219.0,67218.0,0.217425]
[1729586831434,0.44293859,67219.0,67218.0,0.217425]
[1729586832042,0.44293859,67219.0,67210.0,0.00223184]
[1729586832043,0.49632623,67219.0,67210.0,0.00223184]
[1729586832233,0.214428,67216.0,67214.0,0.07443]
[1729586832538,0.08214016,67215.0,67214.0,0.0546279]
[1729586832728,0.15656916,67215.0,67214.0,0.0546279]
[1729586832926,0.08214016,67215.0,67213.0,0.14]
[1729586833127,0.15657016,67214.0,67213.0,0.14]
[1729586834131,0.15657016,67214.0,67213.0,0.214431]
[1729586834641,0.15657016,67214.0,67213.0,0.215431]
[1729586835734,0.07443,67214.0,67213.0,0.215431]
[1729586835927,0.3608,67219.0,67213.0,0.46062292]
[1729586836135,0.3608,67219.0,67218.0,0.08917805]
[1729586836331,0.3608,67219.0,67218.0,0.20103763]
[1729586836733,0.435224,67219.0,67218.0,0.11185958]
[1729586837341,0.435224,67219.0,67218.0,0.18628458]
[1729586837541,0.435224,67219.0,67218.0,0.27546263]
[1729586837744,0.435224,67219.0,67218.0,0.18769047]
[1729586839342,0.575224,67219.0,67218.0,0.11326547]
[1729586839546,0.575224,67219.0,67210.0,0.10638102]
[1729586839547,1.021544,67219.0,67215.0,0.08920358]
[1729586839844,1.021544,67219.0,67200.0,0.27396611]
[1729586839845,0.074433,67211.0,67199.0,0.10414918]
[1729586840041,0.5008,67200.0,67194.0,0.10414918]
[1729586840344,0.5008,67200.0,67195.0,0.12991876]
[1729586840537,0.074452,67194.0,67193.0,0.14]
[1729586840740,0.435252,67194.0,67193.0,0.27004098]
[1729586841041,0.3608,67194.0,67193.0,0.214453]
[1729586841248,0.3608,67194.0,67193.0,0.3444399]
[1729586841539,0.3608,67194.0,67193.0,0.214453]
[1729586841944,0.3608,67194.0,67193.0,0.228453]
[1729586843248,0.3618,67194.0,67193.0,0.238453]
[1729586843446,0.3618,67194.0,67193.0,0.024]
[1729586843646,0.436252,67194.0,67193.0,0.01]
[1729586843846,0.436252,67194.0,67193.0,0.018]
[1729586843847,0.437252,67194.0,67193.0,0.018]
[1729586844045,0.577252,67194.0,67193.0,0.018]
[1729586845852,0.437252,67194.0,67193.0,0.018]
[1729586846641,1.023732,67194.0,67193.0,0.018]
[1729586849248,0.074454,67192.0,67191.0,0.3]
[1729586849757,0.520934,67192.0,67191.0,0.3]
[1729586850141,0.660934,67192.0,67191.0,0.3]
[1729586850346,0.07447,67178.0,67177.0,0.00223305]
[1729586850542,1.04291,67178.0,67177.0,0.00223305]
[1729586850742,0.074472,67176.0,67161.0,0.074488]
[1729586850937,0.3608,67162.0,67161.0,0.074488]
[1729586851340,0.3608,67162.0,67160.0,0.074489]
[1729586851547,0.3608,67162.0,67161.0,0.074488]
[1729586852940,0.3608,67162.0,67161.0,0.087488]
[1729586853152,0.3618,67162.0,67161.0,0.087488]
[1729586853736,0.3618,67162.0,67161.0,0.079488]
[1729586853938,0.3618,67162.0,67161.0,0.081488]
[1729586854142,0.436287,67162.0,67161.0,0.007]
[1729586854662,0.437287,67162.0,67161.0,0.011]
[1729586854839,0.3628,67162.0,67161.0,0.085488]
[1729586855153,0.3628,67162.0,67161.0,0.225488]
[1729586855453,0.3618,67162.0,67161.0,0.223488]
[1729586856443,0.3608,67162.0,67161.0,0.218488]
[1729586858047,0.31607393,67162.0,67161.0,0.218488]
[1729586859048,0.31607393,67162.0,67161.0,0.078488]
[1729586859455,0.2638936,67162.0,67161.0,0.078488]
[1729586860341,0.18935032,67162.0,67161.0,0.078488]
[1729586860744,0.18935032,67162.0,67161.0,0.218488]
[1729586861245,0.46768,67175.0,67161.0,0.144]
[1729586861544,0.074479,67170.0,67167.0,0.2587856]
[1729586861849,0.074479,67170.0,67169.0,0.0443046]
[1729586862444,0.074479,67170.0,67168.0,0.07448]
[1729586862750,0.074479,67170.0,67168.0,0.1335528]
[1729586863254,0.074479,67170.0,67169.0,0.001]
[1729586863655,0.074479,67170.0,67169.0,0.0600728]
[1729586864055,0.074479,67170.0,67169.0,0.001]
[1729586864351,0.3608,67175.0,67173.0,0.074475]
[1729586864654,0.074474,67174.0,67172.0,0.14]
[1729586864844,0.074474,67174.0,67172.0,0.19912062]
[1729586865049,0.074474,67174.0,67172.0,0.05912062]
[1729586865349,0.3608,67175.0,67173.0,0.13359462]
[1729586865647,0.578273,67175.0,67174.0,0.05914707]
[1729586865857,0.578273,67175.0,67172.0,0.05914707]
[1729586865858,0.074475,67173.0,67172.0,0.05914707]
[1729586866052,0.3608,67175.0,67168.0,0.006]
[1729586866247,0.3608,67169.0,67165.0,0.074484]
[1729586867455,0.074482,67167.0,67166.0,0.10836032]
[1729586867650,0.3608,67169.0,67166.0,0.10836032]
[1729586867951,0.074482,67167.0,67165.0,0.074484]
[1729586868461,0.074482,67167.0,67166.0,0.10808758]
[1729586868757,0.074482,67167.0,67166.0,0.10808171]
[1729586869651,0.074482,67167.0,67166.0,0.10908171]
[1729586870243,0.074482,67167.0,67166.0,0.11008171]
[1729586870454,0.3608,67169.0,67166.0,0.11008171]
[1729586870755,0.074482,67168.0,67167.0,0.10808171]
[1729586872656,0.074482,67168.0,67167.0,0.10908171]
[1729586872849,0.074482,67168.0,67167.0,0.11008171]
[1729586873050,0.074482,67168.0,67167.0,0.002]
[1729586873344,0.214482,67168.0,67167.0,0.001]
[1729586877656,1.401122,67168.0,67167.0,0.001]
[1729586877846,0.074488,67162.0,67149.0,0.0445338]
[1729586878051,0.074502,67149.0,67147.0,0.04676748]
[1729586878251,0.074502,67149.0,67147.0,0.00223368]
[1729586879659,0.075502,67149.0,67147.0,0.00823368]
[1729586880055,0.075502,67149.0,67148.0,0.23969226]
[1729586880455,0.001,67149.0,67148.0,0.23969226]
[1729586880660,0.001,67149.0,67148.0,0.41834444]
[1729586880853,0.3608,67153.0,67152.0,0.074498]
[1729586881049,0.3608,67153.0,67152.0,0.55834328]
[1729586881254,0.3608,67160.0,67159.0,0.074491]
[1729586881457,0.38828319,67160.0,67159.0,0.31418326]
[1729586882058,0.3608,67160.0,67159.0,0.31418326]
[1729586882251,0.3608,67160.0,67159.0,0.72364768]
[1729586882456,0.2862526,67160.0,67159.0,0.7755616]
[1729586882656,0.2872526,67160.0,67159.0,0.7795616]
[1729586882857,0.2872526,67160.0,67159.0,0.7845616]
[1729586883764,0.2872526,67160.0,67159.0,0.6136227]
[1729586883950,0.2872526,67160.0,67159.0,0.78368276]
[1729586884561,0.2872526,67160.0,67159.0,0.78350137]
[1729586884562,0.001,67160.0,67159.0,0.78350137]
[1729586884754,0.001,67160.0,67159.0,1.14430137]
[1729586885960,0.001,67160.0,67159.0,1.13870404]
[1729586886160,0.001,67160.0,67159.0,0.99653979]
[1729586887966,0.001,67160.0,67159.0,0.73999737]
[1729586888166,0.001,67160.0,67159.0,0.61172319]
[1729586888667,0.001,67160.0,67159.0,0.47172319]
[1729586888867,0.21549,67160.0,67159.0,0.3698]
[1729586889068,0.2519729,67160.0,67159.0,0.3698]
[1729586889270,0.29770174,67160.0,67159.0,0.009]
[1729586889569,0.29770174,67160.0,67159.0,0.00619214]
[1729586890570,0.29771394,67160.0,67159.0,0.00619214]
[1729586890765,1.10519394,67160.0,67159.0,0.00519214]
[1729586891068,1.18552571,67160.0,67159.0,0.00519214]
[1729586891566,1.18553115,67160.0,67159.0,0.00519214]
[1729586892178,0.70776507,67160.0,67159.0,0.00519214]
[1729586892365,0.54540669,67160.0,67159.0,0.00519214]
[1729586893166,0.49966804,67160.0,67159.0,0.00519214]
[1729586893467,0.63966804,67160.0,67159.0,0.00519214]
[1729586894467,1.04620389,67160.0,67159.0,0.00519214]
[1729586894666,1.54632901,67160.0,67159.0,0.00519214]
[1729586894870,1.54632901,67160.0,67159.0,0.00359185]
[1729586895175,1.41065731,67160.0,67159.0,0.06308952]
[1729586895370,1.41065731,67160.0,67159.0,0.00359185]
[1729586899684,2.01065731,67160.0,67132.0,0.3608]
[1729586899875,0.3608,67137.0,67135.0,0.074516]
[1729586900084,0.3608,67137.0,67129.0,0.14]
[1729586900378,0.3608,67137.0,67128.0,0.02719972]
[1729586900379,0.14,67135.0,67132.0,0.07452]
[1729586900776,0.14,67135.0,67132.0,0.08752]
[1729586901271,0.074519,67133.0,67132.0,0.013]
[1729586901780,0.074519,67133.0,67132.0,0.016]
[1729586902182,0.074519,67133.0,67132.0,0.013]
[1729586902374,0.074519,67133.0,67132.0,0.015]
[1729586902881,0.074519,67133.0,67132.0,0.013]
[1729586903084,0.075519,67133.0,67132.0,0.002]
[1729586903280,0.075519,67133.0,67132.0,0.008]
[1729586903476,0.075519,67133.0,67132.0,0.148]
[1729586903676,0.001,67133.0,67132.0,0.222521]
[1729586904070,0.001,67133.0,67132.0,0.216521]
[1729586904273,0.002,67133.0,67132.0,0.222521]
[1729586905575,0.002,67133.0,67132.0,0.669401]
[1729586906081,0.002,67133.0,67132.0,0.69599963]
[1729586906586,0.3608,67137.0,67132.0,0.69599963]
[1729586906779,0.3608,67137.0,67136.0,0.214516]